bitfinex/quotes_SOLUSD_20241205
["timestamp","ask_amount","ask_price","bid_price","bid_amount"]
[1733371285405,10.707,233.49,233.32,0.12549]
[1733371286310,10.707,233.49,233.3,0.12549]
[1733371286511,21.4123,233.51,233.3,0.12549]
[1733371286717,25.37199671,233.51,233.21,0.85469114]
[1733371287084,21.4123,233.51,233.22,0.12549]
[1733371287286,21.4123,233.51,233.24,0.25098]
[1733371287600,21.4123,233.51,233.26,0.25098]
[1733371287798,21.4123,233.51,233.28,0.25098]
[1733371288311,21.4123,233.51,233.28,0.12549]
[1733371289024,21.4123,233.51,233.23,0.85483126]
[1733371289315,5.60251418,233.5,233.2,1.6991]
[1733371289518,5.60251418,233.5,233.21,0.12549]
[1733371289715,5.60251418,233.5,233.21,0.85509471]
[1733371290094,32.1211,233.49,233.22,0.12549]
[1733371290415,3.95969671,233.48,233.23,0.85508158]
[1733371291296,32.124,233.47,233.24,0.12549]
[1733371291804,32.124,233.47,233.24,0.25098]
[1733371292011,37.72651418,233.47,233.24,0.25098]
[1733371292193,37.72651418,233.47,233.24,0.12549]
[1733371292395,3.95969671,233.46,233.22,0.25098]
[1733371293116,3.0525,233.45,233.2,1.6991]
[1733371293297,6.1572,233.43,233.2,1.6991]
[1733371293486,3.95969671,233.42,233.21,0.12549]
[1733371294012,3.95969671,233.42,233.21,0.98078257]
[1733371294219,32.128,233.44,233.21,0.98078257]
[1733371294220,10.7093,233.44,233.21,0.78626562]
[1733371294521,10.7093,233.44,233.22,1.6991]
[1733371294817,10.7093,233.44,233.23,0.78572016]
[1733371294999,10.7093,233.44,233.24,0.12549]
[1733371295199,10.7093,233.44,233.25,0.78577389]
[1733371295502,21.4141,233.49,233.25,0.78577389]
[1733371296115,21.4141,233.49,233.26,0.78574324]
[1733371296322,23.33711717,233.49,233.27,0.12549]
[1733371296619,34.04411717,233.49,233.29,0.25098]
[1733371296798,34.04411717,233.49,233.31,0.25098]
[1733371297118,38.00381388,233.49,233.31,0.12549]
[1733371297295,34.04411717,233.49,233.23,0.78587248]
[1733371297519,34.04411717,233.49,233.24,0.12549]
[1733371297798,34.04411717,233.49,233.22,1.6991]
[1733371297799,34.04411717,233.49,233.26,0.12549]
[1733371298005,34.04411717,233.49,233.28,0.12549]
[1733371298208,34.04411717,233.49,233.24,0.12549]
[1733371298420,34.04411717,233.49,233.22,1.6991]
[1733371298421,34.04411717,233.49,233.28,0.12549]
[1733371298598,34.04411717,233.49,233.28,1.03678015]
[1733371298798,38.00381388,233.49,233.28,1.03678015]
[1733371299001,34.04411717,233.49,233.28,1.03678015]
[1733371300128,55.45821717,233.49,233.28,1.03678015]
[1733371300425,55.45821717,233.49,233.27,1.6991]
[1733371301250,55.45821717,233.49,233.28,0.12549]
[1733371301526,55.45821717,233.49,233.28,0.91131628]
[1733371301710,55.45821717,233.49,233.29,0.12549]
[1733371301902,55.45821717,233.49,233.31,0.12549]
[1733371302106,55.45821717,233.49,233.33,0.25098]
[1733371302796,55.45821717,233.49,233.33,0.12549]
[1733371306124,12.63001717,233.49,233.33,0.12549]
[1733371306424,12.63001717,233.49,233.28,0.91138697]
[1733371306425,10.707,233.49,233.35,0.25098]
[1733371306612,10.707,233.49,233.35,1.03658223]
[1733371306929,10.707,233.49,233.35,0.25098]
[1733371307632,32.1211,233.49,233.34,1.6991]
[1733371308001,32.1211,233.49,233.35,0.12549]
[1733371308914,9.5952,233.47,233.19,0.12549]
[1733371309230,0.12549,233.46,233.19,0.78607021]
[1733371309526,4.08518671,233.46,233.19,0.78607021]
[1733371309705,4.08518671,233.46,233.2,0.12549]
[1733371309909,4.08518671,233.46,233.18,1.6991]
[1733371310506,4.08518671,233.46,233.19,1.03711326]
[1733371310507,3.95969671,233.46,233.19,1.03711326]
[1733371310715,3.0725,233.47,233.21,0.25098]
[1733371310905,10.7084,233.46,233.23,0.25098]
[1733371311224,10.7084,233.46,233.22,0.78587926]
[1733371311225,32.1253,233.46,233.25,0.12549]
[1733371311402,32.1253,233.46,233.27,0.25098]
[1733371311897,3.95969671,233.45,233.27,0.25098]
[1733371312127,10.7093,233.44,233.29,0.12549]
[1733371312837,10.7093,233.44,233.3,0.12549]
[1733371313237,10.7093,233.44,233.32,0.25098]
[1733371313541,10.7075,233.48,233.34,0.25098]
[1733371313737,10.7075,233.48,233.36,0.25098]
[1733371314224,21.4132,233.5,233.36,0.12549]
[1733371314425,23.25243215,233.5,233.38,0.25098]
[1733371315137,33.95903215,233.5,233.38,0.25098]
[1733371318754,39.56154633,233.5,233.37,1.6991]
[1733371319134,39.56154633,233.5,233.38,0.12549]
[1733371319851,39.56154633,233.5,233.38,0.25098]
[1733371320628,32.1226,233.48,233.38,0.25098]
[1733371321025,37.72511418,233.48,233.21,1.6991]
[1733371321327,37.72511418,233.48,233.22,0.78590072]
[1733371321735,59.14021418,233.48,233.22,0.78590072]
[1733371321948,6.2855,233.46,233.21,1.6991]
[1733371322156,5.72800418,233.45,233.21,1.6991]
[1733371322621,5.72800418,233.45,233.22,0.12549]
[1733371323424,5.72800418,233.45,233.21,1.6991]
[1733371323425,0.12549,233.43,233.21,1.6991]
[1733371323785,0.12549,233.41,233.21,1.6991]
[1733371324050,0.12549,233.39,233.11,1.6991]
[1733371324432,3.95969671,233.38,233.11,1.6991]
[1733371324633,0.12549,233.36,232.92,0.78643463]
[1733371324944,0.12549,233.26,232.86,1.6991]
[1733371325152,0.12549,233.26,232.87,0.12549]
[1733371325321,3.95969671,233.25,232.87,0.85647509]
[1733371325527,32.1556,233.24,232.86,1.6991]
[1733371325738,0.12549,233.21,232.86,1.6991]
[1733371325946,0.12549,233.21,232.87,0.12549]
[1733371326144,0.12549,233.19,232.87,0.12549]
[1733371326326,0.12549,233.19,232.86,1.6991]
[1733371326526,10.7222,233.16,232.86,1.6991]
[1733371326869,0.12549,233.15,232.87,0.12549]
[1733371327228,14.68189671,233.16,232.87,0.12549]
[1733371327229,14.68189671,233.16,232.87,0.85637051]
[1733371327525,12.98549,233.14,232.79,1.6991]
[1733371327732,12.98549,233.12,232.79,1.6991]
[1733371328256,0.12549,233.1,232.8,0.98237737]
[1733371328754,10.7254,233.09,232.8,0.98237737]
[1733371329455,0.12549,233.08,232.8,0.98237737]
[1733371329652,10.7254,233.09,232.8,0.98237737]
[1733371330138,4.08518671,233.08,232.8,0.85688737]
[1733371330454,4.08518671,233.08,232.79,1.6991]
[1733371330825,4.08518671,233.08,232.8,0.12549]
[1733371331042,5.80194971,233.08,232.79,1.6991]
[1733371331640,0.12549,233.06,232.8,0.12549]
[1733371331827,0.12549,233.06,232.79,1.6991]
[1733371332650,0.12549,233.04,232.79,1.6991]
[1733371332848,0.12549,233.02,232.79,1.6991]
[1733371333164,0.12549,233.0,232.79,1.6991]
[1733371333338,4.08518671,233.0,232.79,1.6991]
[1733371333654,0.12549,232.98,232.79,1.6991]
[1733371333858,4.08518671,232.98,232.79,1.6991]
[1733371334630,0.12549,232.96,232.79,1.6991]
[1733371334860,5.72800418,232.96,232.79,1.6991]
[1733371335230,5.60251418,232.96,232.79,1.6991]
[1733371335450,10.7309,232.97,232.79,1.6991]
[1733371335856,10.7309,232.97,232.8,0.12549]
[1733371336045,10.729,233.02,232.8,0.12549]
[1733371336359,10.729,233.02,232.8,0.25098]
[1733371336545,14.68869671,233.02,232.8,0.25098]
[1733371336933,10.7296,233.0,232.8,0.25098]
[1733371337130,10.7296,233.0,232.8,1.10764793]
[1733371337336,10.7296,233.0,232.8,0.25098]
[1733371337940,10.7296,233.0,232.8,0.12549]
[1733371338147,10.7305,232.98,232.8,0.12549]
[1733371338784,27.05521418,233.07,232.8,0.12549]
[1733371338785,10.7278,233.04,232.8,0.98224691]
[1733371338947,1.87186672,233.07,232.81,1.82459]
[1733371339145,10.7257,233.09,232.83,0.12549]
[1733371339352,12.63369308,233.09,232.87,0.12549]
[1733371339548,12.63369308,233.09,232.87,0.98180551]
[1733371339869,12.63369308,233.09,232.88,0.12549]
[1733371340161,12.63369308,233.09,232.9,0.12549]
[1733371340365,21.4433,233.18,232.9,0.12549]
[1733371340366,12.439626,233.14,232.94,0.12549]
[1733371340549,1.716126,233.14,232.95,0.12549]
[1733371340868,10.7212,233.19,232.97,0.25098]
[1733371341370,10.7212,233.19,232.99,0.12549]
[1733371341839,10.7212,233.19,232.95,0.25098]
[1733371341840,3.95969671,233.18,232.95,0.25098]
[1733371342040,3.95969671,233.18,232.97,0.25098]
[1733371342570,3.95969671,233.18,232.99,0.25098]
[1733371342739,3.95969671,233.18,232.99,0.12549]
[1733371342740,10.7217,233.17,232.99,0.12549]
[1733371342940,0.12549,233.16,232.93,1.6991]
[1733371343141,4.08518671,233.16,232.93,1.6991]
[1733371344466,0.12549,233.14,232.93,1.6991]
[1733371344766,1.84045553,233.16,232.94,0.85632183]
[1733371344970,2.9642,233.28,232.95,0.12549]
[1733371345143,10.718,233.26,232.97,1.82459]
[1733371345342,10.718,233.26,232.99,0.12549]
[1733371345539,10.718,233.26,233.01,0.12549]
[1733371345844,1.86819174,233.28,233.05,0.12549]
[1733371346164,16.31561418,233.36,233.08,0.25098]
[1733371346364,16.31561418,233.36,233.1,0.25098]
[1733371346569,16.31561418,233.36,233.08,0.12549]
[1733371346570,10.7131,233.36,233.12,0.12549]
[1733371346874,12.60660801,233.36,233.14,0.12549]
[1733371347077,5.72800418,233.35,233.07,1.6991]
[1733371348239,0.12549,233.33,233.08,0.25098]
[1733371348646,0.12549,233.33,233.1,0.25098]
[1733371349373,0.12549,233.34,233.1,0.25098]
[1733371349547,0.12549,233.31,233.09,0.25098]
[1733371350273,0.12549,233.31,233.09,0.12549]
[1733371350482,0.12549,233.31,233.07,1.6991]
[1733371350483,3.95969671,233.3,233.07,1.6991]
[1733371350652,6.5428,233.28,232.88,1.81857399]
[1733371350856,5.60251418,233.27,232.89,0.85620006]
[1733371351660,32.27839,233.26,232.9,0.12549]
[1733371351873,32.27839,233.26,232.9,0.98163024]
[1733371352079,0.12549,233.24,232.9,0.85614024]
[1733371352374,0.12549,233.22,232.91,0.12549]
[1733371352575,0.12549,233.22,232.9,0.85614024]
[1733371352779,0.12549,233.22,232.87,1.6991]
[1733371352982,0.12549,233.18,232.87,1.6991]
[1733371353155,0.12549,233.18,232.88,0.12549]
[1733371353356,3.95969671,233.17,232.88,0.12549]
[1733371353800,32.29219,233.16,232.88,0.12549]
[1733371354258,3.95969671,233.15,232.88,0.98187333]
[1733371354682,0.12549,233.14,232.88,0.98187333]
[1733371355179,0.12549,233.14,232.89,0.12549]
[1733371355365,0.12549,233.12,232.89,0.12549]
[1733371355769,5.72800418,233.12,232.87,1.6991]
[1733371355981,0.12549,233.1,232.87,1.6991]
[1733371356775,0.12549,233.08,232.87,1.6991]
[1733371357374,0.12549,233.06,232.87,1.6991]
[1733371357558,0.12549,233.04,232.87,1.6991]
[1733371357973,5.60251418,233.03,232.87,1.6991]
[1733371358359,5.60251418,233.03,232.81,1.6991]
[1733371358360,0.12549,233.02,232.81,1.6991]
[1733371358788,0.12549,232.98,232.81,1.6991]
[1733371359579,5.60251418,232.97,232.81,1.6991]
[1733371360194,10.73,232.99,232.81,1.6991]
[1733371360362,10.7281,233.04,232.81,1.6991]
[1733371360565,10.7281,233.04,232.82,0.12549]
[1733371360779,1.88555224,233.04,232.83,0.12549]
[1733371360986,5.60251418,233.07,232.85,0.12549]
[1733371361465,5.60251418,233.16,232.87,1.82459]
[1733371361689,10.7176,233.26,232.91,0.12549]
[1733371361868,16.32011418,233.26,232.91,0.98156486]
[1733371362380,16.32011418,233.26,232.93,0.12549]
[1733371362584,16.32011418,233.26,232.96,0.25098]
[1733371362585,18.22615953,233.26,232.96,0.25098]
[1733371362889,18.22615953,233.26,232.98,0.25098]
[1733371363084,10.7181,233.25,233.0,0.25098]
[1733371363290,4.08518671,233.24,233.0,0.25098]
[1733371363588,4.08518671,233.24,233.0,0.12549]
[1733371365485,3.95969671,233.24,233.0,0.12549]
[1733371365675,3.95969671,233.24,233.02,0.12549]
[1733371365987,0.12549,233.23,233.02,0.12549]
[1733371366170,5.72800418,233.23,233.02,0.25098]
[1733371366599,0.12549,233.21,233.02,0.12549]
[1733371366881,3.95969671,233.2,233.02,0.12549]
[1733371367583,0.12549,233.18,233.02,0.12549]
[1733371367800,5.72800418,233.18,233.02,0.12549]
[1733371367984,3.95969671,233.17,233.02,0.12549]
[1733371369777,10.7188,233.24,233.02,1.1070533]
[1733371370086,16.32131418,233.24,233.02,1.1070533]
[1733371372472,5.60251418,233.24,233.02,1.1070533]
[1733371372677,1.80528576,233.27,233.06,0.12549]
[1733371372996,5.60251418,233.31,233.08,0.12549]
[1733371373171,5.60251418,233.31,233.08,0.98093314]
[1733371373372,5.60251418,233.37,233.14,0.12549]
[1733371373570,1.714291,233.38,233.15,1.6991]
[1733371373789,1.714291,233.38,233.18,0.12549]
[1733371373998,11.2141933,233.54,233.23,0.12549]
[1733371374202,15.30791279,233.54,233.25,0.12549]
[1733371374396,0.12549,233.53,233.25,0.98020512]
[1733371374570,4.09371949,233.53,233.25,0.98020512]
[1733371375677,13.06850318,233.54,233.26,0.12549]
[1733371375909,13.06850318,233.54,233.28,0.12549]
[1733371376211,13.06850318,233.54,233.32,0.12549]
[1733371376410,13.06850318,233.54,233.32,0.98013944]
[1733371376583,13.06850318,233.54,233.32,0.25098]
[1733371376785,17.16222267,233.54,233.32,0.25098]
[1733371376981,2.36350318,233.54,233.34,0.12549]
[1733371377178,2.36350318,233.54,233.36,0.12549]
[1733371377403,0.5091933,233.54,233.38,0.12549]
[1733371377613,0.5091933,233.54,233.4,0.12549]
[1733371377785,0.5091933,233.54,233.42,0.12549]
[1733371378417,0.5091933,233.54,233.32,0.85444323]
[1733371378418,0.5091933,233.54,233.33,0.12549]
[1733371378605,0.5091933,233.54,233.35,0.12549]
[1733371378904,0.5091933,233.54,233.36,0.85440894]
[1733371379482,0.5091933,233.54,233.37,0.12549]
[1733371379676,0.5091933,233.54,233.39,0.12549]
[1733371379877,0.5091933,233.54,233.41,0.12549]
[1733371380133,0.5091933,233.54,233.43,0.12549]
[1733371380407,0.5091933,233.54,233.43,0.97967547]
[1733371380706,3.4319933,233.77,233.43,0.97967547]
[1733371380707,10.6959,233.74,233.43,0.97967547]
[1733371381813,0.5091933,233.77,233.43,0.97967547]
[1733371382110,0.5091933,233.77,233.45,0.25098]
[1733371382289,0.5091933,233.77,233.46,0.8538212]
[1733371382495,2.31922047,233.77,233.46,0.8538212]
[1733371382686,0.5091933,233.77,233.46,0.8538212]
[1733371383492,10.6951,233.75,233.46,0.8538212]
[1733371383689,0.12549,233.74,233.46,0.8538212]
[1733371384633,2.36152225,233.77,233.47,1.1901]
[1733371384808,1.791516,233.76,233.48,0.85368539]
[1733371385018,2.36152225,233.77,233.48,0.85368539]
[1733371385198,2.36152225,233.77,233.49,0.12549]
[1733371385527,2.36152225,233.77,233.5,0.85383263]
[1733371385707,0.12549,233.76,233.5,0.85383263]
[1733371386319,0.12549,233.76,233.51,0.85403286]
[1733371386536,10.82019,233.76,233.48,0.85405646]
[1733371387034,32.20959,233.76,233.47,1.1901]
[1733371387215,0.12549,233.74,233.47,1.1901]
[1733371387815,0.12549,233.74,233.48,0.854222]
[1733371388217,0.12549,233.72,233.49,0.12549]
[1733371388418,0.12549,233.72,233.51,0.12549]
[1733371388720,0.12549,233.72,233.52,0.85404346]
[1733371389023,0.12549,233.7,233.48,0.12549]
[1733371389230,0.12549,233.7,233.48,0.97972313]
[1733371389817,0.12549,233.72,233.48,0.97972313]
[1733371390207,10.6961,233.73,233.48,0.97972313]
[1733371390421,4.07301325,233.77,233.48,0.97972313]
[1733371390607,2.36152225,233.77,233.48,0.97972313]
[1733371390922,0.5091933,233.77,233.48,0.97972313]
[1733371391113,4.60539001,233.77,233.49,0.12549]
[1733371391317,5.59150418,233.76,233.51,0.12549]
[1733371391524,5.59150418,233.76,233.53,0.25098]
[1733371391931,10.82019,233.76,233.53,0.12549]
[1733371392135,10.6947,233.76,233.53,0.12549]
[1733371392316,0.5091933,233.77,233.56,0.12549]
[1733371392514,0.12549,233.76,233.56,0.97924612]
[1733371392715,0.12549,233.76,233.57,0.12549]
[1733371392909,0.5091933,233.77,233.57,0.85386641]
[1733371393518,0.5091933,233.77,233.55,1.98693769]
[1733371394046,0.5091933,233.77,233.56,0.12549]
[1733371394227,0.5091933,233.77,233.58,0.12549]
[1733371394543,0.5091933,233.77,233.62,0.12549]
[1733371394837,0.5091933,233.77,233.62,0.97892812]
[1733371396641,0.5091933,233.77,233.64,0.12549]
[1733371396932,0.5091933,233.77,233.64,0.97868775]
[1733371398316,0.5091933,233.77,233.64,0.85319775]
[1733371399956,0.5091933,233.77,233.63,1.1331]
[1733371400171,0.12549,233.76,233.63,1.1331]
[1733371400551,0.5091933,233.77,233.63,1.1331]
[1733371401844,0.5091933,233.77,233.64,0.12549]
[1733371402046,0.5091933,233.77,233.64,0.97908057]
[1733371402240,0.5091933,233.77,233.65,0.12549]
[1733371403352,0.5091933,233.77,233.63,1.1331]
[1733371405441,4.60291279,233.77,233.55,1.1331]
[1733371405639,0.12549,233.76,233.55,1.1331]
[1733371406232,0.12549,233.76,233.56,0.12549]
[1733371406449,0.12549,233.76,233.56,0.97937937]
[1733371407174,4.55775621,233.77,233.56,0.97937937]
[1733371407357,4.55775621,233.77,233.56,0.12549]
[1733371407562,10.6947,233.76,233.55,1.1331]
[1733371407862,37.55011418,233.76,233.55,1.1331]
[1733371411001,0.12549,233.71,233.44,1.1331]
[1733371411275,0.12549,233.69,233.44,1.1331]
[1733371411694,4.09619671,233.68,233.44,1.1331]
[1733371412288,14.79469671,233.68,233.44,1.1331]
[1733371412787,0.12549,233.67,233.44,1.1331]
[1733371413295,0.12549,233.65,233.44,1.1331]
[1733371413585,4.09619671,233.65,233.37,1.1331]
[1733371413788,4.09619671,233.67,233.37,1.1331]
[1733371413968,2.9749,233.66,233.37,1.1331]
[1733371414167,10.6997,233.65,233.37,1.1331]
[1733371414374,14.79589671,233.65,233.37,1.1331]
[1733371414792,0.12549,233.64,233.37,1.1331]
[1733371415096,36.19539671,233.65,233.37,1.1331]
[1733371415097,0.12549,233.62,233.37,1.1331]
[1733371415470,6.6639,233.63,233.37,1.1331]
[1733371415471,0.12549,233.6,233.37,1.1331]
[1733371415868,0.12549,233.58,233.37,1.1331]
[1733371416087,0.12549,233.56,233.3,1.1331]
[1733371416296,0.12549,233.54,233.3,1.1331]
[1733371416593,0.12549,233.52,233.3,1.1331]
[1733371416795,0.12549,233.5,233.3,1.1331]
[1733371417293,0.12549,233.5,233.2,1.1331]
[1733371417591,0.12549,233.5,233.21,0.85529188]
[1733371417794,0.12549,233.5,233.22,0.12549]
[1733371417987,0.12549,233.5,233.24,0.12549]
[1733371418189,10.7043,233.55,233.2,21.1331]
[1733371418190,10.7043,233.55,233.26,0.12549]
[1733371418372,2.9296,233.57,233.3,0.12549]
[1733371418577,2.9296,233.57,233.3,0.98016331]
[1733371418774,0.12549,233.56,233.3,0.98016331]
[1733371418978,2.9296,233.57,233.3,0.98016331]
[1733371419988,5.46601418,233.63,233.3,0.98016331]
[1733371420190,2.8484,233.64,233.32,0.12549]
[1733371420384,2.8484,233.64,233.32,0.97989522]
[1733371420588,2.8484,233.64,233.32,20.97989522]
[1733371420900,10.82609,233.63,233.32,20.97989522]
[1733371421081,16.29210418,233.63,233.32,20.97989522]
[1733371421282,16.29210418,233.63,233.32,0.97989522]
[1733371421482,16.29210418,233.63,233.33,0.12549]
[1733371422698,16.29210418,233.63,233.31,1.1331]
[1733371422699,16.16661418,233.63,233.35,0.12549]
[1733371422910,10.7006,233.63,233.37,0.12549]
[1733371423070,10.7006,233.63,233.39,0.12549]
[1733371423278,2.8484,233.64,233.4,0.85442981]
[1733371423893,13.5486,233.64,233.32,0.85447322]
[1733371424700,13.5486,233.64,233.33,0.12549]
[1733371424907,13.5486,233.64,233.34,0.85453185]
[1733371425577,13.5486,233.64,233.35,0.12549]
[1733371425797,13.5486,233.64,233.37,0.12549]
[1733371426100,13.5486,233.64,233.38,0.85452324]
[1733371426889,0.12549,233.63,233.39,0.85450758]
[1733371427089,0.12549,233.63,233.33,0.98000454]
[1733371427383,0.12549,233.63,233.35,0.12549]
[1733371427593,6.4651,233.68,233.35,0.12549]
[1733371427594,6.4651,233.68,233.35,0.9799262]
[1733371427810,6.4651,233.68,233.38,0.25098]
[1733371427982,0.12549,233.67,233.4,0.12549]
[1733371428182,0.12549,233.67,233.42,0.12549]
[1733371429104,0.12549,233.67,233.42,0.85436876]
[1733371430101,0.12549,233.67,233.38,0.85436808]
[1733371430305,0.12549,233.67,233.39,0.12549]
[1733371430612,10.6981,233.69,233.41,0.12549]
[1733371430815,10.6981,233.69,233.43,0.12549]
[1733371431920,14.79429671,233.69,233.43,0.12549]
[1733371432293,5.46601418,233.68,233.38,0.85445676]
[1733371432523,5.46601418,233.68,233.37,1.1331]
[1733371432745,18.32601418,233.68,233.37,1.1331]
[1733371433516,5.46601418,233.68,233.37,1.1331]
[1733371433700,10.6988,233.67,233.37,1.1331]
[1733371434501,4.22168671,233.66,233.37,1.1331]
[1733371434816,4.09619671,233.66,233.38,0.85446445]
[1733371435002,9.9746245,233.67,233.39,1.1331]
[1733371435205,9.9746245,233.67,233.4,0.85427672]
[1733371435509,10.6971,233.71,233.43,0.12549]
[1733371435712,10.6971,233.71,233.44,1.25859]
[1733371435914,5.9300509,233.77,233.44,1.25859]
[1733371435915,32.0847,233.76,233.46,0.12549]
[1733371436218,0.46403672,233.77,233.5,0.12549]
[1733371436397,0.12549,233.76,233.52,0.12549]
[1733371436612,0.46403672,233.77,233.52,0.97934784]
[1733371437049,11.15833672,233.77,233.52,0.12549]
[1733371437211,0.12549,233.76,233.52,0.25098]
[1733371437737,0.12549,233.76,233.52,0.12549]
[1733371437914,10.6951,233.75,233.52,0.12549]
[1733371438236,0.12549,233.74,233.52,0.12549]
[1733371438942,0.46403672,233.77,233.52,1.10516144]
[1733371440420,0.12549,233.76,233.52,1.10516144]
[1733371441238,0.46403672,233.77,233.54,0.12549]
[1733371441440,0.46403672,233.77,233.58,0.12549]
[1733371441605,0.46403672,233.77,233.58,0.97909576]
[1733371441812,0.46403672,233.77,233.59,0.12549]
[1733371442237,0.46403672,233.77,233.58,0.97909576]
[1733371442238,0.12549,233.76,233.58,0.12549]
[1733371443119,0.12549,233.76,233.58,0.25098]
[1733371443446,0.46403672,233.77,233.58,0.25098]
[1733371443617,0.12549,233.76,233.58,0.12549]
[1733371444560,0.46403672,233.77,233.58,0.12549]
[1733371444853,0.46403672,233.77,233.6,0.12549]
[1733371445154,0.46403672,233.77,233.6,0.97915237]
[1733371445757,0.12549,233.76,233.6,0.12549]
[1733371446545,0.12549,233.76,233.59,1.1331]
[1733371447142,10.82019,233.76,233.44,1.1331]
[1733371447353,10.82019,233.76,233.45,0.85425606]
[1733371447556,10.82019,233.76,233.46,0.12549]
[1733371448059,32.20959,233.76,233.45,0.85425606]
[1733371448231,32.20959,233.76,233.44,1.1331]
[1733371449258,32.20959,233.76,233.45,0.12549]
[1733371449935,32.20959,233.76,233.45,0.25098]
[1733371450738,32.20959,233.76,233.45,0.12549]
[1733371450938,12.86,233.74,233.44,1.1331]
[1733371451148,4.09619671,233.73,233.44,1.1331]
[1733371452074,32.0896,233.72,233.44,1.1331]
[1733371452373,6.5702,233.71,233.44,1.1331]
[1733371452558,2.8989,233.7,233.44,1.1331]
[1733371452953,4.09619671,233.69,233.44,1.1331]
[1733371454161,32.095,233.68,233.44,1.1331]
[1733371454471,5.46601418,233.67,233.44,1.1331]
[1733371454979,0.12549,233.66,233.44,1.1331]
[1733371455481,0.12549,233.64,233.44,1.1331]
[1733371455868,0.12549,233.62,233.44,1.1331]
[1733371456171,0.12549,233.6,233.25,1.1331]
[1733371456352,0.12549,233.6,233.26,0.85496775]
[1733371456672,0.12549,233.58,233.27,1.25859]
[1733371456870,0.12549,233.58,233.29,0.12549]
[1733371457062,0.12549,233.58,233.3,0.85480138]
[1733371457262,5.46601418,233.59,233.3,0.85480138]
[1733371457263,0.12549,233.56,233.3,0.85480138]
[1733371457470,0.12549,233.56,233.3,1.1331]
[1733371457981,0.12549,233.54,233.3,1.1331]
[1733371458156,0.12549,233.52,233.31,0.12549]
[1733371459063,27.716,233.68,233.32,1.25859]
[1733371459267,27.716,233.68,233.36,0.12549]
[1733371459480,1.712453,233.6,233.36,0.97996328]
[1733371459655,1.712453,233.6,233.37,1.25859]
[1733371459855,1.712453,233.6,233.41,0.12549]
[1733371460071,21.3894,233.76,233.41,0.12549]
[1733371460072,10.697,233.71,233.44,0.12549]
[1733371460276,10.697,233.71,233.46,0.12549]
[1733371460485,1.711972,233.67,233.46,0.97966318]
[1733371460683,3.44663672,233.77,233.47,1.1331]
[1733371460975,10.6961,233.73,233.48,0.12549]
[1733371461560,0.12549,233.72,233.48,0.12549]
[1733371462453,0.12549,233.7,233.48,0.12549]
[1733371463480,0.12549,233.68,233.48,0.12549]
[1733371465080,21.394,233.71,233.48,0.12549]
[1733371465377,10.6988,233.67,233.48,0.12549]
[1733371466079,10.6968,233.72,233.48,0.25098]
[1733371466253,21.3894,233.76,233.5,0.12549]
[1733371466454,21.3894,233.76,233.5,0.97955949]
[1733371466661,0.12549,233.75,233.51,0.12549]
[1733371466969,21.3894,233.76,233.52,0.12549]
[1733371467168,2.17588672,233.77,233.54,0.12549]
[1733371467367,2.17588672,233.77,233.57,1.1331]
[1733371467563,0.12549,233.76,233.57,1.1331]
[1733371467763,11.15863672,233.77,233.57,1.1331]
[1733371467971,0.12549,233.76,233.57,1.1331]
[1733371468164,0.46403672,233.77,233.58,0.12549]
[1733371468363,0.46403672,233.77,233.58,0.97926947]
[1733371468591,0.12549,233.76,233.58,0.97926947]
[1733371468962,0.46403672,233.77,233.58,0.97926947]
[1733371469489,0.12549,233.76,233.57,1.1331]
[1733371469861,0.12549,233.76,233.58,0.12549]
[1733371470488,10.6951,233.75,233.58,0.12549]
[1733371470693,10.6951,233.75,233.57,1.1331]
[1733371472095,10.6951,233.75,233.58,0.12549]
[1733371472394,0.46403672,233.77,233.58,0.25098]
[1733371472571,0.46403672,233.77,233.6,0.12549]
[1733371472763,0.46403672,233.77,233.62,0.12549]
[1733371473075,0.46403672,233.77,233.62,0.97911991]
[1733371474091,0.46403672,233.77,233.63,0.12549]
[1733371474387,0.46403672,233.77,233.65,0.12549]
[1733371475478,0.46403672,233.77,233.62,0.97906152]